fUST/lending_fUST_20240401
["ID","MTS","AMOUNT","RATE_DAILY","PERIOD"]
[321151371,1711913235157,-363.35413364,0.000439,2]
[321151372,1711913244106,-651.06560891,0.000439,2]
[321151376,1711913410344,174.666667,0.0004,2]
[321151539,1711913438699,-268.17349858,0.000439,2]
[321151541,1711913438709,-172.3776757,0.00046757,2]
[321151543,1711913438719,-280.0,0.00046923,120]
[321151545,1711913438728,-187.70857331,0.000478,2]
[321151546,1711913438738,-1162.266735,0.000478,2]
[321151548,1711913438747,-166.666666,0.00047918,2]
[321151550,1711913438758,-165.97697902,0.00048001,120]
[321151552,1711913438767,-219.52781165,0.00048001,120]
[321151554,1711913438776,-318.0,0.00048002,2]
[321151556,1711913438785,-4067.25568148,0.00048002,2]
[321151561,1711913438827,-0.57182253,0.00048002,2]
[321151563,1711913438838,-17341.14812947,0.00048002,2]
[321151565,1711913438850,-2064.96363582,0.00048002,2]
[321151747,1711913443532,-1426.0607307,0.00048002,2]
[321151749,1711913443541,-250.0,0.00048233,2]
[321151751,1711913443551,-174.66205,0.00048463,2]
[321151753,1711913443560,-200.0,0.0004878,2]
[321151755,1711913443570,-423.3179575,0.00048784,2]
[321151757,1711913443579,-1282.59324113,0.000489,2]
[321151759,1711913443589,-1514.360524,0.00049007,2]
[321151761,1711913443598,-777.90462775,0.00049033,2]
[321151764,1711913443617,-324.76061975,0.00049033,2]
[321151766,1711913443628,-166.666666,0.00049224,2]
[321151768,1711913443636,-332.0527844,0.00049228,2]
[321151770,1711913443645,-160.1081193,0.00049242,2]
[321151772,1711913443655,-625.9969173,0.00049465,2]
[321151774,1711913443664,-4374.9823399,0.00049594,2]
[321151776,1711913443673,-4927.38611249,0.0005,2]
[321151793,1711913443819,-31509.97523168,0.0005,2]
[321151808,1711913443950,-2179.6761764,0.0005,2]
[321152078,1711913446602,-212.0,0.0005,2]
[321152080,1711913446611,-159859.83169188,0.0005,2]
[321152082,1711913446619,-165.862662,0.00050043,2]
[321152084,1711913446628,-166.666666,0.00050531,2]
[321152086,1711913446637,-166.666666,0.00051837,2]
[321152088,1711913446647,-212.0,0.00053,2]
[321152090,1711913446656,-166.666666,0.00053144,2]
[321152092,1711913446665,-166.666666,0.0005445,2]
[321152093,1711913446674,-14598.75421501,0.00055,2]
[321152096,1711913446684,-212.0,0.00056,2]
[321152097,1711913446693,-1038.51844614,0.00057366,2]
[321152099,1711913446702,-53724.00063127,0.0006,2]
[321152101,1711913446711,-1191.10200187,0.0006,7]
[321152103,1711913446721,-948.02489068,0.00066,2]
[321152105,1711913446731,-151.0,0.0007,120]
[321152107,1711913446740,-174.641098,0.00072329,2]
[321152109,1711913446750,-945.97076874,0.00072527,16]
[321152111,1711913446758,-1514.360524,0.0007351,30]
[321152114,1711913446768,-500.00000074,0.00076712,120]
[321152116,1711913446777,-501.26407381,0.00076712,120]
[321152118,1711913446786,-279.146561,0.00076712,120]
[321152119,1711913446795,-500.0,0.00076712,120]
[321152122,1711913446804,-537.33165041,0.00076712,120]
[321152124,1711913446813,-500.0,0.00076712,120]
[321152126,1711913446822,-500.0,0.00076712,120]
[321152127,1711913446831,-725.96,0.00076712,120]
[321152129,1711913446840,-3084.28,0.00076712,120]
[321152132,1711913446850,-308.14,0.00076712,120]
[321152134,1711913446859,-216.0,0.00076712,120]
[321152135,1711913446868,-151.0,0.00076712,120]
[321152137,1711913446877,-500.0,0.00076712,120]
[321152139,1711913446886,-500.0,0.00076712,120]
[321152141,1711913446895,-1554.75,0.00076712,120]
[321152143,1711913446904,-151.0,0.00076712,120]
[321152145,1711913446913,-500.0,0.00076712,120]
[321152147,1711913446922,-500.0,0.00076712,120]
[321152149,1711913446931,-216.48,0.00076712,120]
[321152151,1711913446940,-371.39,0.00076712,120]
[321152154,1711913446950,-210.83835132,0.00076712,120]
[321152155,1711913446959,-500.39486159,0.00076712,120]
[321152157,1711913446968,-500.0,0.00076712,120]
[321152159,1711913446978,-500.0,0.00076712,120]
[321152162,1711913446988,-227.91,0.00076712,120]
[321152164,1711913446997,-500.0,0.00076712,120]
[321152166,1711913447006,-500.0,0.00076712,120]
[321152168,1711913447015,-500.29566991,0.00076712,120]
[321152170,1711913447024,-500.0,0.00076712,120]
[321152172,1711913447034,-500.0,0.00076712,120]
[321152173,1711913447043,-500.0,0.00076712,120]
[321152175,1711913447052,-500.0,0.00076712,120]
[321152178,1711913447061,-500.0,0.00076712,120]
[321152179,1711913447071,-500.0,0.00076712,120]
[321152182,1711913447080,-151.0,0.00076712,120]
[321152183,1711913447089,-500.0,0.00076712,120]
[321152186,1711913447099,-500.0,0.00076712,120]
[321152188,1711913447112,-500.0,0.00076712,120]
[321152189,1711913447121,-500.0,0.00076712,2]
[321152200,1711913447209,-500.0,0.00076712,120]
[321152202,1711913447219,-457.05,0.00076712,120]
[321152204,1711913447228,-484.34038641,0.00076712,120]
[321152206,1711913447238,-260.583694,0.00076712,120]
[321152209,1711913447247,-260.583694,0.00076712,120]
[321152211,1711913447257,-500.0,0.00076712,120]
[321152213,1711913447267,-498.38224322,0.00076712,120]
[321152215,1711913447276,-500.0,0.00076712,120]
[321152217,1711913447287,-500.0,0.00076712,120]
[321152219,1711913447297,-365.860467,0.00076712,120]
[321152221,1711913447306,-365.860467,0.00076712,120]
[321152223,1711913447315,-500.0,0.00076712,120]
[321152225,1711913447324,-151.0,0.00076712,120]
[321152227,1711913447333,-214.3115393,0.00076712,120]
[321152228,1711913447343,-500.0,0.00076712,120]
[321152230,1711913447353,-151.0,0.00076712,120]
[321152233,1711913447364,-500.0,0.00076712,120]
[321152234,1711913447375,-500.0,0.00076712,120]
[321152236,1711913447384,-462.49501128,0.00076712,30]
[321152238,1711913447394,-500.0,0.00076712,120]
[321152240,1711913447403,-151.0,0.00076712,10]
[321152241,1711913447413,-500.0,0.00076712,120]
[321152242,1711913447421,-2187.46,0.00076712,120]
[321152243,1711913447430,-500.0,0.00076712,120]
[321152245,1711913447439,-500.0,0.00076712,120]
[321152247,1711913447448,-500.0,0.00076712,120]
[321152249,1711913447457,-500.0,0.00076712,120]
[321152251,1711913447466,-500.0,0.00076712,120]
[321152253,1711913447475,-151.0,0.00076712,120]
[321152255,1711913447484,-500.0,0.00076712,120]
[321152257,1711913447493,-151.0,0.00076712,120]
[321152259,1711913447502,-500.0,0.00076712,120]
[321152261,1711913447511,-500.0,0.00076712,120]
[321152263,1711913447520,-502.64247285,0.00076712,120]
[321152265,1711913447528,-500.0,0.00076712,120]
[321152267,1711913447537,-634.84,0.00076712,120]
[321152269,1711913447547,-500.0,0.00076712,120]
[321152271,1711913447556,-2402.76,0.00076712,120]
[321152273,1711913447565,-500.0,0.00076712,120]
[321152274,1711913447574,-500.0,0.00076712,120]
[321152276,1711913447583,-599.00199159,0.00076712,120]
[321152278,1711913447592,-800.0,0.00076712,120]
[321152280,1711913447601,-500.0,0.00076712,120]
[321152282,1711913447610,-500.0,0.00076712,120]
[321152284,1711913447620,-500.0,0.00076712,120]
[321152287,1711913447629,-644.780885,0.00076712,120]
[321152289,1711913447639,-500.0,0.00076712,120]
[321152291,1711913447649,-644.780885,0.00076712,120]
[321152292,1711913447658,-500.0,0.00076712,120]
[321152294,1711913447667,-500.0,0.00076712,120]
[321152297,1711913447677,-500.0,0.00076712,120]
[321152299,1711913447686,-151.0,0.00076712,120]
[321152301,1711913447696,-151.0,0.00076712,120]
[321152303,1711913447705,-500.0,0.00076712,120]
[321152305,1711913447715,-500.0,0.00076712,120]
[321152307,1711913447724,-285.5752063,0.00076712,120]
[321152309,1711913447733,-500.0,0.00076712,120]
[321152311,1711913447742,-500.0,0.00076712,120]
[321152313,1711913447751,-500.0,0.00076712,120]
[321152315,1711913447760,-1000.0,0.00076712,7]
[321152316,1711913447769,-500.0,0.00076712,120]
[321152319,1711913447778,-500.0,0.00076712,120]
[321152321,1711913447788,-519.68,0.00076712,120]
[321152323,1711913447797,-704.08,0.00076712,120]
[321152325,1711913447806,-500.0,0.00076712,120]
[321152327,1711913447815,-500.0,0.00076712,120]
[321152329,1711913447824,-274.47121068,0.00076712,120]
[321152331,1711913447833,-500.0,0.00076712,120]
[321152333,1711913447842,-500.0,0.00076712,120]
[321152334,1711913447851,-500.0,0.00076712,120]
[321152336,1711913447860,-151.0,0.00076712,120]
[321152339,1711913447870,-151.0,0.00076712,120]
[321152341,1711913447879,-500.0,0.00076712,120]
[321152343,1711913447888,-2675.88,0.00076712,90]
[321152345,1711913447897,-500.0,0.00076712,120]
[321152347,1711913447906,-3000.0,0.00076712,120]
[321152349,1711913447915,-500.0,0.00076712,120]
[321152351,1711913447924,-500.0,0.00076712,120]
[321152353,1711913447933,-500.0,0.00076712,120]
[321152355,1711913447942,-504.8426622,0.00076712,120]
[321152356,1711913447951,-151.0,0.00076712,120]
[321152358,1711913447961,-500.0,0.00076712,21]
[321152360,1711913447969,-500.0,0.00076712,120]
[321152362,1711913447978,-500.0,0.00076712,120]
[321152364,1711913447987,-500.0,0.00076712,120]
[321152367,1711913447997,-500.0,0.00076712,120]
[321152369,1711913448006,-500.0,0.00076712,120]
[321152370,1711913448015,-500.0,0.00076712,120]
[321152372,1711913448024,-500.0,0.00076712,120]
[321152374,1711913448033,-500.0,0.00076712,120]
[321152376,1711913448042,-152.028577,0.00076712,120]
[321152379,1711913448051,-1000.0,0.00076714,60]
[321152381,1711913448060,-1000.0,0.00076737,60]
[321152382,1711913448069,-1000.0,0.00076741,60]
[321152385,1711913448078,-1017.17888977,0.00076744,60]
[321152387,1711913448088,-1000.0,0.00076772,60]
[321152388,1711913448098,-1000.0,0.00076796,60]
[321152391,1711913448110,-1000.0,0.00076804,60]
[321152393,1711913448119,-1000.0,0.00076805,60]
[321152395,1711913448128,-1000.0,0.00076821,60]
[321152397,1711913448138,-1000.0,0.00076832,60]
[321152398,1711913448147,-1000.0,0.00076856,60]
[321152400,1711913448159,-1000.0,0.00076873,60]
[321152403,1711913448168,-157.14285713,0.00076877,120]
[321152404,1711913448177,-1000.0,0.00076883,60]
[321152406,1711913448188,-1000.0,0.00076891,60]
[321152408,1711913448198,-1000.0,0.00076949,60]
[321152411,1711913448207,-208.10488773,0.00076953,60]
[321152413,1711913448217,-300.46749993,0.00076955,60]
[321152415,1711913448226,-1000.0,0.00076967,60]
[321152417,1711913448235,-500.0,0.00076986,120]
[321152418,1711913448244,-508.53,0.00076986,120]
[321152420,1711913448253,-725.96,0.00076986,120]
[321152423,1711913448263,-3084.28,0.00076986,120]
[321152424,1711913448273,-216.0,0.00076986,120]
[321152427,1711913448282,-153.572432,0.00076986,120]
[321152428,1711913448291,-364.92961964,0.00076986,120]
[321152431,1711913448301,-1554.75,0.00076986,120]
[321152432,1711913448310,-213.252296,0.00076986,120]
[321152435,1711913448319,-500.0,0.00076986,120]
[321152437,1711913448331,-500.0,0.00076986,120]
[321152439,1711913448340,-588.48176332,0.00076986,120]
[321152441,1711913448349,-500.0,0.00076986,120]
[321152443,1711913448358,-500.0,0.00076986,120]
[321152445,1711913448367,-500.0,0.00076986,120]
[321152447,1711913448377,-500.0,0.00076986,120]
[321152449,1711913448386,-500.0,0.00076986,120]
[321152451,1711913448394,-151.0,0.00076986,120]
[321152453,1711913448403,-151.0,0.00076986,120]
[321152455,1711913448412,-500.0,0.00076986,120]
[321152457,1711913448421,-500.0,0.00076986,120]
[321152459,1711913448430,-500.0,0.00076986,2]
[321152461,1711913448439,-500.0,0.00076986,120]
[321152463,1711913448448,-260.583694,0.00076986,120]
[321152465,1711913448457,-260.583694,0.00076986,120]
[321152467,1711913448467,-260.583694,0.00076986,120]
[321152469,1711913448476,-496.18682468,0.00076986,120]
[321152471,1711913448484,-260.583694,0.00076986,120]
[321152473,1711913448493,-365.860467,0.00076986,120]
[321152475,1711913448502,-365.860467,0.00076986,120]
[321152477,1711913448511,-365.860467,0.00076986,120]
[321152479,1711913448520,-500.0,0.00076986,120]
[321152481,1711913448529,-365.860467,0.00076986,120]
[321152483,1711913448538,-151.0,0.00076986,120]
[321152485,1711913448546,-151.0,0.00076986,120]
[321152487,1711913448555,-500.0,0.00076986,120]
[321152489,1711913448564,-199.584983,0.00076986,120]
[321152491,1711913448575,-500.0,0.00076986,120]
[321152492,1711913448583,-500.0,0.00076986,120]
[321152494,1711913448593,-151.0,0.00076986,10]
[321152496,1711913448601,-151.0,0.00076986,10]
[321152498,1711913448610,-351.0,0.00076986,120]
[321152500,1711913448619,-2187.46,0.00076986,120]
[321152502,1711913448628,-500.0,0.00076986,120]
[321152505,1711913448637,-500.0,0.00076986,120]
[321152507,1711913448647,-500.0,0.00076986,120]
[321152509,1711913448656,-403.50506659,0.00076986,120]
[321152510,1711913448665,-500.0,0.00076986,120]
[321152512,1711913448674,-151.0,0.00076986,120]
[321152514,1711913448683,-219.787723,0.00076986,120]
[321152516,1711913448693,-500.0,0.00076986,120]
[321152518,1711913448702,-151.0,0.00076986,120]
[321152520,1711913448712,-151.0,0.00076986,120]
[321152522,1711913448721,-500.0,0.00076986,120]
[321152524,1711913448730,-500.0,0.00076986,120]
[321152526,1711913448739,-634.84,0.00076986,120]
[321152529,1711913448748,-500.0,0.00076986,120]
[321152531,1711913448758,-2402.76,0.00076986,120]
[321152532,1711913448767,-647.05358252,0.00076986,120]
[321152534,1711913448778,-500.57185038,0.00076986,120]
[321152536,1711913448787,-800.0,0.00076986,120]
[321152539,1711913448797,-500.0,0.00076986,120]
[321152540,1711913448807,-500.0,0.00076986,120]
[321152542,1711913448816,-500.0,0.00076986,120]
[321152544,1711913448825,-644.780885,0.00076986,120]
[321152546,1711913448835,-644.780885,0.00076986,120]
[321152549,1711913448845,-644.780885,0.00076986,120]
[321152551,1711913448855,-644.780885,0.00076986,120]
[321152553,1711913448864,-500.0,0.00076986,120]
[321152555,1711913448873,-297.398,0.00076986,120]
[321152556,1711913448882,-500.0,0.00076986,120]
[321152558,1711913448891,-151.0,0.00076986,120]
[321152560,1711913448900,-151.0,0.00076986,120]
[321152563,1711913448909,-151.0,0.00076986,120]
[321152565,1711913448918,-151.0,0.00076986,120]
[321152566,1711913448928,-500.0,0.00076986,120]
[321152569,1711913448937,-489.41,0.00076986,120]
[321152571,1711913448946,-500.0,0.00076986,120]
[321152573,1711913448955,-500.0,0.00076986,120]
[321152575,1711913448966,-504.75686157,0.00076986,120]
[321152577,1711913448975,-1020.24,0.00076986,7]
[321152578,1711913448984,-500.0,0.00076986,120]
[321152587,1711913449051,-704.08,0.00076986,120]
[321152590,1711913449067,-500.0,0.00076986,120]
[321152592,1711913449076,-500.0,0.00076986,120]
[321152594,1711913449086,-500.0,0.00076986,120]
[321152595,1711913449095,-500.0,0.00076986,120]
[321152597,1711913449107,-500.0,0.00076986,120]
[321152599,1711913449116,-151.0,0.00076986,120]
[321152601,1711913449125,-151.0,0.00076986,120]
[321152603,1711913449134,-151.0,0.00076986,120]
[321152605,1711913449143,-151.0,0.00076986,120]
[321152607,1711913449152,-2675.88,0.00076986,90]
[321152609,1711913449161,-500.0,0.00076986,120]
[321152611,1711913449169,-3000.0,0.00076986,120]
[321152613,1711913449179,-500.0,0.00076986,120]
[321152615,1711913449188,-518.78155511,0.00076986,120]
[321152617,1711913449197,-151.0,0.00076986,120]
[321152619,1711913449206,-151.0,0.00076986,120]
[321152621,1711913449217,-500.0,0.00076986,21]
[321152623,1711913449226,-500.0,0.00076986,120]
[321152625,1711913449235,-393.12001368,0.00076986,120]
[321152627,1711913449244,-500.0,0.00076986,120]
[321152629,1711913449253,-500.0,0.00076986,120]
[321152631,1711913449262,-500.0,0.00076986,120]
[321152633,1711913449271,-500.0,0.00076986,120]
[321152635,1711913449280,-200.0,0.00076987,2]
[321152637,1711913449289,-1047.80531517,0.0007726,2]
[321152639,1711913449298,-872.61316164,0.0007726,2]
[321152641,1711913449307,-500.0,0.0007726,120]
[321152643,1711913449316,-725.96,0.0007726,120]
[321152645,1711913449325,-3084.28,0.0007726,120]
[321152647,1711913449335,-216.0,0.0007726,120]
[321152649,1711913449343,-216.0,0.0007726,120]
[321152651,1711913449352,-1554.75,0.0007726,120]
[321152654,1711913449364,-500.0,0.0007726,120]
[321152656,1711913449374,-500.0,0.0007726,120]
[321152658,1711913449383,-500.0,0.0007726,120]
[321152660,1711913449392,-589.51910874,0.0007726,120]
[321152662,1711913449401,-500.0,0.0007726,120]
[321152664,1711913449410,-500.0,0.0007726,120]
[321152666,1711913449421,-500.0,0.0007726,120]
[321152668,1711913449430,-151.0,0.0007726,120]
[321152669,1711913449439,-500.0,0.0007726,120]
[321152672,1711913449448,-500.0,0.0007726,120]
[321152674,1711913449457,-500.0,0.0007726,2]
[321152675,1711913449469,-500.0,0.0007726,120]
[321152676,1711913449479,-260.583694,0.0007726,120]
[321152677,1711913449487,-260.583694,0.0007726,120]
[321152678,1711913449496,-365.860467,0.0007726,120]
[321152679,1711913449506,-500.0,0.0007726,120]
[321152680,1711913449515,-365.860467,0.0007726,120]
[321152681,1711913449524,-151.0,0.0007726,120]
[321152682,1711913449533,-503.93365634,0.0007726,120]
[321152683,1711913449542,-500.0,0.0007726,120]
[321152684,1711913449551,-500.0,0.0007726,120]
[321152685,1711913449561,-151.0,0.0007726,10]
[321152686,1711913449569,-2187.46,0.0007726,120]
[321152687,1711913449578,-500.0,0.0007726,120]
[321152689,1711913449587,-500.0,0.0007726,120]
[321152691,1711913449596,-500.0,0.0007726,120]
[321152693,1711913449606,-361.52,0.0007726,120]
[321152694,1711913449615,-500.0,0.0007726,120]
[321152695,1711913449624,-151.0,0.0007726,120]
[321152697,1711913449634,-500.0,0.0007726,120]
[321152699,1711913449643,-500.0,0.0007726,120]
[321152701,1711913449652,-634.84,0.0007726,120]
[321152703,1711913449661,-500.0,0.0007726,120]
[321152705,1711913449670,-2402.76,0.0007726,120]
[321152707,1711913449679,-800.0,0.0007726,120]
[321152709,1711913449689,-500.0,0.0007726,120]
[321152711,1711913449698,-644.780885,0.0007726,120]
[321152713,1711913449707,-644.780885,0.0007726,120]
[321152715,1711913449722,-500.0,0.0007726,120]
[321152717,1711913449732,-151.0,0.0007726,120]
[321152718,1711913449741,-151.0,0.0007726,120]
[321152720,1711913449750,-500.0,0.0007726,120]
[321152722,1711913449759,-500.0,0.0007726,120]
[321152724,1711913449769,-500.0,0.0007726,120]
[321152726,1711913449778,-500.0,0.0007726,120]
[321152728,1711913449787,-704.08,0.0007726,120]
[321152730,1711913449796,-500.0,0.0007726,120]
[321152732,1711913449806,-500.0,0.0007726,120]
[321152734,1711913449815,-500.0,0.0007726,120]
[321152736,1711913449824,-500.0,0.0007726,120]
[321152738,1711913449833,-232.37,0.0007726,120]
[321152740,1711913449842,-151.0,0.0007726,120]
[321152742,1711913449851,-151.0,0.0007726,120]
[321152744,1711913449861,-2675.88,0.0007726,90]
[321152746,1711913449869,-500.0,0.0007726,120]
[321152747,1711913449879,-3000.0,0.0007726,120]
[321152750,1711913449889,-500.0,0.0007726,120]
[321152752,1711913449902,-151.0,0.0007726,120]
[321152754,1711913449915,-500.0,0.0007726,21]
[321152756,1711913449927,-500.0,0.0007726,120]
[321152757,1711913449939,-500.0,0.0007726,120]
[321152758,1711913449950,-500.0,0.0007726,120]
[321152759,1711913449962,-500.0,0.0007726,120]
[321152760,1711913449974,-500.0,0.0007726,120]
[321152761,1711913449985,-500.0,0.00077534,120]
[321152762,1711913449996,-725.96,0.00077534,120]
[321152763,1711913450009,-3084.28,0.00077534,120]
[321152764,1711913450021,-216.0,0.00077534,120]
[321152765,1711913450032,-1554.75,0.00077534,120]
[321152766,1711913450044,-500.0,0.00077534,120]
[321152768,1711913450055,-500.0,0.00077534,120]
[321152770,1711913450065,-500.0,0.00077534,120]
[321152772,1711913450076,-500.0,0.00077534,120]
[321152775,1711913450087,-500.0,0.00077534,120]
[321152777,1711913450099,-500.0,0.00077534,120]
[321152779,1711913450112,-151.0,0.00077534,120]
[321152781,1711913450124,-500.0,0.00077534,120]
[321152783,1711913450134,-500.0,0.00077534,120]
[321152785,1711913450145,-500.0,0.00077534,2]
[321152786,1711913450160,-500.0,0.00077534,120]
[321152788,1711913450172,-260.583694,0.00077534,120]
[321152790,1711913450183,-260.583694,0.00077534,120]
[321152792,1711913450194,-365.860467,0.00077534,120]
[321152794,1711913450204,-500.0,0.00077534,120]
[321152797,1711913450219,-365.860467,0.00077534,120]
[321152799,1711913450231,-152.045424,0.00077534,120]
[321152801,1711913450241,-500.0,0.00077534,120]
[321152804,1711913450254,-500.0,0.00077534,120]
[321152806,1711913450265,-151.0,0.00077534,10]
[321152808,1711913450277,-2187.46,0.00077534,120]
[321152810,1711913450288,-460.85,0.00077534,120]
[321152812,1711913450301,-500.0,0.00077534,120]
[321152815,1711913450312,-500.0,0.00077534,120]
[321152817,1711913450325,-500.0,0.00077534,120]
[321152819,1711913450337,-151.0,0.00077534,120]
[321152821,1711913450351,-159.88,0.00077534,120]
[321152824,1711913450363,-500.0,0.00077534,120]
[321152825,1711913450376,-634.84,0.00077534,120]
[321152826,1711913450389,-500.0,0.00077534,120]
[321152827,1711913450400,-2402.76,0.00077534,120]
[321152828,1711913450411,-800.0,0.00077534,120]
[321152829,1711913450421,-500.0,0.00077534,120]
[321152830,1711913450431,-644.780885,0.00077534,120]
[321152831,1711913450442,-644.780885,0.00077534,120]
[321152832,1711913450454,-500.0,0.00077534,120]
[321152833,1711913450468,-151.0,0.00077534,120]
[321152834,1711913450479,-170.67653,0.00077534,120]
[321152835,1711913450490,-500.0,0.00077534,120]
[321152836,1711913450502,-252.82925259,0.00077534,120]
[321152837,1711913450513,-500.0,0.00077534,120]
[321152838,1711913450523,-500.0,0.00077534,120]
[321152839,1711913450534,-704.08,0.00077534,120]
[321152840,1711913450544,-177.82,0.00077534,120]
[321152841,1711913450555,-500.0,0.00077534,120]
[321152842,1711913450565,-500.0,0.00077534,120]
[321152843,1711913450580,-500.0,0.00077534,120]
[321152844,1711913450590,-151.0,0.00077534,120]
[321152845,1711913450601,-151.0,0.00077534,120]
[321152846,1711913450612,-2675.88,0.00077534,90]
[321152847,1711913450622,-275.13,0.00077534,120]
[321152848,1711913450634,-3000.0,0.00077534,120]
[321152849,1711913450645,-500.0,0.00077534,120]
[321152850,1711913450656,-176.241644,0.00077534,120]
[321152851,1711913450666,-500.0,0.00077534,21]
[321152852,1711913450677,-500.0,0.00077534,120]
[321152853,1711913450687,-500.0,0.00077534,120]
[321152854,1711913450697,-365.10092996,0.00077534,120]
[321152855,1711913450708,-500.0,0.00077534,120]
[321152856,1711913450720,-500.0,0.00077534,120]
[321152857,1711913450732,-1175.92132128,0.00077708,2]
[321152858,1711913450743,-500.0,0.00077808,120]
[321152859,1711913450754,-725.96,0.00077808,120]
[321152860,1711913450766,-3084.28,0.00077808,120]
[321152861,1711913450777,-216.0,0.00077808,120]
[321152862,1711913450789,-1554.75,0.00077808,120]
[321152863,1711913450799,-500.0,0.00077808,120]
[321152864,1711913450810,-500.0,0.00077808,120]
[321152865,1711913450822,-500.0,0.00077808,120]
[321152866,1711913450833,-500.0,0.00077808,120]
[321152867,1711913450844,-500.0,0.00077808,120]
[321152868,1711913450855,-500.0,0.00077808,120]
[321152869,1711913450865,-151.0,0.00077808,120]
[321152870,1711913450876,-500.0,0.00077808,120]
[321152871,1711913450886,-500.0,0.00077808,120]
[321152872,1711913450897,-500.0,0.00077808,2]
[321152873,1711913451003,-500.0,0.00077808,120]
[321152874,1711913451012,-260.583694,0.00077808,120]
[321152875,1711913451022,-260.583694,0.00077808,120]
[321152876,1711913451033,-365.860467,0.00077808,120]
[321152877,1711913451042,-500.0,0.00077808,120]
[321152878,1711913451052,-365.860467,0.00077808,120]
[321152879,1711913451061,-151.0,0.00077808,120]
[321152880,1711913451070,-500.0,0.00077808,120]
[321152881,1711913451079,-500.0,0.00077808,120]
[321152882,1711913451090,-151.0,0.00077808,10]
[321152883,1711913451101,-2187.46,0.00077808,120]
[321152884,1711913451114,-500.0,0.00077808,120]
[321152885,1711913451124,-500.0,0.00077808,120]
[321152886,1711913451135,-500.0,0.00077808,120]
[321152887,1711913451144,-151.0,0.00077808,120]
[321152888,1711913451153,-500.0,0.00077808,120]
[321152889,1711913451163,-634.84,0.00077808,120]
[321152890,1711913451172,-500.0,0.00077808,120]
[321152891,1711913451181,-2402.76,0.00077808,120]
[321152892,1711913451191,-800.0,0.00077808,120]
[321152893,1711913451201,-500.0,0.00077808,120]
[321152894,1711913451210,-644.780885,0.00077808,120]
[321152895,1711913451220,-644.780885,0.00077808,120]
[321152896,1711913451230,-500.0,0.00077808,120]
[321152897,1711913451239,-151.0,0.00077808,120]
[321152898,1711913451249,-500.0,0.00077808,120]
[321152899,1711913451258,-500.0,0.00077808,120]
[321152900,1711913451267,-500.0,0.00077808,120]
[321152901,1711913451276,-704.08,0.00077808,120]
[321152902,1711913451286,-500.0,0.00077808,120]
[321152903,1711913451295,-500.0,0.00077808,120]
[321152904,1711913451305,-500.0,0.00077808,120]
[321152905,1711913451315,-151.0,0.00077808,120]
[321152906,1711913451324,-188.381046,0.00077808,120]
[321152907,1711913451334,-2675.88,0.00077808,90]
[321152908,1711913451344,-3000.0,0.00077808,120]
[321152909,1711913451355,-500.0,0.00077808,120]
[321152910,1711913451365,-500.0,0.00077808,21]
[321152911,1711913451374,-500.0,0.00077808,120]
[321152912,1711913451384,-500.0,0.00077808,120]